bitfinex/quotes_ETHUSD_20250426
["timestamp","ask_amount","ask_price","bid_price","bid_amount"]
[1745650123836,4.839,1806.5,1806.1,5.53662088]
[1745650124232,4.839,1806.5,1806.3,5.53615997]
[1745650124434,4.839,1806.5,1806.4,5.53587245]
[1745650124633,3.0,1806.7,1806.4,5.53587245]
[1745650124834,0.1,1806.9,1806.4,4.90085832]
[1745650125039,4.939,1806.9,1806.7,5.5346787]
[1745650125348,4.939,1806.9,1806.6,5.53507347]
[1745650125914,4.939,1806.9,1806.5,5.53538467]
[1745650126544,4.939,1806.9,1806.5,5.53531236]
[1745650126708,4.939,1806.9,1806.6,5.53524741]
[1745650127063,4.939,1806.9,1806.5,5.53539586]
[1745650127206,4.939,1806.9,1806.4,4.90085832]
[1745650127507,4.939,1806.9,1806.6,5.53498113]
[1745650127706,4.939,1806.9,1806.7,5.53494537]
[1745650127947,4.939,1806.9,1806.5,5.53541617]
[1745650128555,4.939,1806.9,1806.5,5.53533026]
[1745650128730,4.939,1806.9,1806.6,5.53524011]
[1745650128903,4.939,1806.9,1806.5,5.53538417]
[1745650129110,4.939,1806.9,1806.6,5.53522774]
[1745650131024,5.5348323,1806.8,1806.4,5.94455589]
[1745650131219,13.48243464,1806.9,1806.4,10.43662154]
[1745650131815,7.9479057,1806.9,1806.6,5.53523336]
[1745650132123,7.9479057,1806.9,1806.5,5.53545429]
[1745650132324,4.939,1806.9,1806.5,5.53545429]
[1745650132649,4.939,1806.9,1806.4,10.43664907]
[1745650132810,4.939,1806.9,1806.8,5.53464688]
[1745650133011,0.1,1806.9,1806.6,5.53508028]
[1745650133372,0.1,1806.9,1806.8,5.53464688]
[1745650133665,0.1,1806.9,1806.8,11.54245347]
[1745650133806,0.1,1806.9,1806.8,12.33305347]
[1745650134637,0.1,1806.9,1806.8,6.00780659]
[1745650134814,0.1,1806.9,1806.8,4.90085832]
[1745650136579,4.936,1806.9,1806.8,4.90085832]
[1745650144280,11.25184058,1806.9,1806.8,4.90085832]
[1745650144589,5.7175,1806.9,1806.8,4.90085832]
[1745650144971,4.936,1806.9,1806.8,4.90085832]
[1745650145409,4.936,1806.9,1806.8,10.4355052]
[1745650145585,4.936,1806.9,1806.8,4.90085832]
[1745650146414,4.936,1806.9,1806.8,11.47906857]
[1745650147416,4.936,1806.9,1806.8,5.94442169]
[1745650147624,4.936,1806.9,1806.8,6.45381323]
[1745650148310,4.936,1806.9,1806.8,11.98846011]
[1745650148512,4.936,1806.9,1806.8,6.45381323]
[1745650148895,4.936,1806.9,1806.8,11.98846011]
[1745650150414,0.1,1806.9,1806.8,11.98846011]
[1745650150709,0.1,1806.9,1806.8,5.71658146]
[1745650151009,0.1,1806.9,1806.8,5.20718992]
[1745650151213,9.18434058,1806.9,1806.8,5.20718992]
[1745650151381,10.43682937,1806.9,1806.8,5.20718992]
[1745650151708,10.43682937,1806.9,1806.8,0.3063316]
[1745650151909,5.53560982,1806.5,1806.2,4.90085832]
[1745650152082,4.848,1806.5,1806.2,4.90085832]
[1745650152284,3.7572,1806.3,1806.2,4.90085832]
[1745650152496,3.7572,1806.3,1806.2,5.41244428]
[1745650152789,3.7572,1806.3,1806.2,4.90085832]
[1745650153694,5.6547,1806.5,1806.2,11.43957165]
[1745650154008,4.848,1806.5,1806.3,5.53594686]
[1745650154182,4.848,1806.5,1806.4,0.51230293]
[1745650154686,4.848,1806.5,1806.4,6.35537749]
[1745650155024,4.848,1806.5,1806.4,7.54450856]
[1745650155218,4.848,1806.5,1806.4,2.00863611]
[1745650155508,4.848,1806.5,1806.4,6.35537749]
[1745650156210,4.848,1806.5,1806.4,0.81950504]
[1745650156577,10.38356601,1806.5,1806.4,0.81950504]
[1745650156779,13.38356601,1806.5,1806.4,0.51230293]
[1745650157389,13.38356601,1806.5,1806.2,4.90085832]
[1745650157587,7.848,1806.5,1806.2,4.90085832]
[1745650157996,7.848,1806.5,1806.3,0.51170564]
[1745650158294,7.848,1806.5,1806.4,0.51170564]
[1745650158596,4.848,1806.5,1806.4,0.51170564]
[1745650159507,0.59528879,1806.9,1806.4,6.65209917]
[1745650159508,0.1,1806.9,1806.4,6.65209917]
[1745650159728,0.1,1806.9,1806.5,6.31195061]
[1745650159916,3.1,1806.9,1806.5,1.28820564]
[1745650160232,3.1,1806.9,1806.6,0.51170564]
[1745650160609,4.52983646,1806.9,1806.6,0.51170564]
[1745650160939,4.52983646,1806.9,1806.7,0.51170564]
[1745650161533,4.52983646,1806.9,1806.5,6.3120627]
[1745650161728,4.52983646,1806.9,1806.6,0.81749757]
[1745650162233,4.52983646,1806.9,1806.7,0.5109356]
[1745650162436,3.1,1806.9,1806.7,0.5109356]
[1745650164107,5.53464688,1806.8,1806.7,0.5109356]
[1745650164313,5.53464688,1806.8,1806.5,0.5109356]
[1745650164624,5.53464688,1806.8,1806.6,0.5109356]
[1745650164824,8.63449912,1806.9,1806.6,0.5109356]
[1745650165132,5.08328758,1806.9,1806.5,6.04635782]
[1745650165337,10.61762863,1806.9,1806.5,0.5109356]
[1745650165501,10.61762863,1806.9,1806.6,0.5109356]
[1745650165840,10.61762863,1806.9,1806.5,0.5109356]
[1745650166225,10.61762863,1806.9,1806.6,0.5109356]
[1745650166440,1.06176286,1806.8,1806.6,0.5109356]
[1745650166628,1.06176286,1806.8,1806.5,0.5109356]
[1745650167021,5.08328758,1806.9,1806.5,0.5109356]
[1745650167350,5.08328758,1806.9,1806.5,6.04647006]
[1745650167540,10.61765557,1806.9,1806.6,0.5109356]
[1745650168241,5.08328758,1806.9,1806.6,5.5351366]
[1745650168435,3.1,1806.9,1806.6,5.5351366]
[1745650168762,3.1,1806.9,1806.7,0.5109356]
[1745650169555,5.53464688,1806.8,1806.7,0.5109356]
[1745650169848,8.63436162,1806.9,1806.7,0.5109356]
[1745650170028,8.63436162,1806.9,1806.5,0.5109356]
[1745650170444,8.63436162,1806.9,1806.6,0.5109356]
[1745650170649,10.11921778,1806.9,1806.6,0.5109356]
[1745650170820,10.11921778,1806.9,1806.5,0.5109356]
[1745650171033,10.11921778,1806.9,1806.6,0.5109356]
[1745650171359,5.53465435,1806.8,1806.6,0.5109356]
[1745650171538,10.11921778,1806.9,1806.5,0.5109356]
[1745650172146,10.11944192,1806.9,1806.6,0.5109356]
[1745650172345,1.01194419,1806.8,1806.6,0.5109356]
[1745650172556,1.01194419,1806.8,1806.5,0.5109356]
[1745650173055,5.53477852,1806.8,1806.6,0.81769945]
[1745650173566,4.58485616,1806.9,1806.6,0.30676385]
[1745650173773,4.848,1806.8,1806.5,5.53532559]
[1745650174140,4.848,1806.8,1806.6,0.51127947]
[1745650174676,4.848,1806.8,1806.7,0.51127947]
[1745650175851,10.38264688,1806.8,1806.7,0.51127947]
[1745650176054,10.38264688,1806.8,1806.5,0.51127947]
[1745650176274,4.848,1806.8,1806.6,0.30682314]
[1745650176457,4.848,1806.8,1806.6,6.35312755]
[1745650176870,4.848,1806.8,1806.7,0.51127947]
[1745650177162,4.848,1806.8,1806.7,0.81810261]
[1745650180549,4.848,1806.8,1806.7,1.63620261]
[1745650185297,4.848,1806.8,1806.7,0.81810261]
[1745650185968,4.848,1806.8,1806.7,0.51127947]
[1745650186797,15.36044454,1806.8,1806.7,0.51127947]
[1745650187164,6.08498746,1806.7,1806.4,4.90085832]
[1745650187588,6.08498746,1806.7,1806.5,0.51227412]
[1745650187789,6.08498746,1806.7,1806.6,0.51227412]
[1745650188674,10.37587625,1806.7,1806.6,0.51227412]
[1745650188897,8.5352596,1806.6,1806.5,0.51227412]
[1745650189325,8.5352596,1806.6,1806.4,4.90085832]
[1745650189490,3.0,1806.5,1806.4,4.90085832]
[1745650189693,3.0,1806.5,1806.4,5.41315843]
[1745650190094,3.0,1806.6,1806.4,5.72045137]
[1745650190497,3.0,1806.6,1806.5,0.51230011]
[1745650191797,3.0,1806.6,1806.5,0.81955816]
[1745650193327,3.0,1806.6,1806.5,0.51230011]
[1745650195024,1.3456,1806.7,1806.5,0.51230011]
[1745650195226,4.3456,1806.7,1806.5,0.51230011]
[1745650195606,4.3456,1806.7,1806.4,4.90085832]
[1745650195807,9.880744,1806.7,1806.4,4.90085832]
[1745650196121,12.04988215,1806.7,1806.4,4.90085832]
[1745650196431,12.04988215,1806.7,1806.5,0.51194222]
[1745650196639,12.04988215,1806.7,1806.4,4.90085832]
[1745650197671,12.04985014,1806.7,1806.5,0.81909788]
[1745650198159,12.04985014,1806.7,1806.5,0.30716872]
[1745650198461,12.04985014,1806.7,1806.4,4.90085832]
[1745650199047,9.74032545,1806.6,1806.5,0.51194864]
[1745650199241,4.20498501,1806.6,1806.5,0.51194864]
[1745650199655,9.74024461,1806.6,1806.5,0.51194864]
[1745650199818,4.20498501,1806.6,1806.5,0.51194864]
[1745650201323,9.74024461,1806.6,1806.5,0.51194864]
[1745650201730,4.20498501,1806.6,1806.5,0.51194864]
[1745650202351,3.0,1806.6,1806.5,0.51194864]
[1745650203253,3.55,1806.7,1806.5,0.81902707]
[1745650203653,3.55,1806.7,1806.6,0.51194864]
[1745650203995,4.848,1806.8,1806.6,0.51194864]
[1745650204200,0.1,1806.9,1806.8,5.53464688]
[1745650204502,0.1,1806.9,1806.8,12.87697324]
[1745650204963,0.1,1806.9,1806.8,13.18405167]
[1745650205169,0.1,1806.9,1806.8,6.48028539]
[1745650205390,0.1,1806.9,1806.8,0.81902707]
[1745650205994,5.63434058,1806.9,1806.8,0.81902707]
[1745650206301,0.928,1806.9,1806.8,0.81902707]
[1745650206460,6.46234058,1806.9,1806.8,0.51194864]
[1745650206662,3.0,1806.8,1806.4,11.19693905]
[1745650206858,4.796,1806.7,1806.5,5.53555098]
[1745650207063,4.796,1806.7,1806.4,5.66125832]
[1745650207276,4.796,1806.7,1806.6,0.5111964]
[1745650208065,0.1,1806.9,1806.8,5.53464688]
[1745650208294,0.1,1806.9,1806.8,12.30786521]
[1745650208605,0.1,1806.9,1806.8,12.6145925]
[1745650208807,0.1,1806.9,1806.8,13.1257889]
[1745650209503,0.1,1806.9,1806.8,13.62107769]
[1745650211534,0.4049603,1807.1,1807.0,6.29943431]
[1745650211733,0.4049603,1807.1,1807.0,7.97809005]
[1745650212040,0.4049603,1807.1,1807.0,8.28481734]
[1745650212338,0.4049603,1807.1,1807.0,8.79601374]
[1745650217638,0.4049603,1807.1,1807.0,13.20158327]
[1745650217829,0.4049603,1807.1,1807.0,12.43618327]
[1745650221861,0.4049603,1807.1,1807.0,13.25708327]
[1745650222979,0.4049603,1807.1,1807.0,13.25440648]
[1745650224941,0.4049603,1807.1,1807.0,12.43350648]
[1745650225142,0.4049603,1807.1,1807.0,11.25013953]
[1745650225784,0.4049603,1807.1,1807.0,5.71610522]
[1745650227239,4.2098603,1807.1,1807.0,5.71610522]
[1745650227472,10.29358837,1807.1,1807.0,0.50851961]
[1745650227838,0.8049,1806.9,1806.5,10.43630217]
[1745650228052,4.794,1806.8,1806.5,6.4980532]
[1745650228248,4.794,1806.8,1806.6,11.07026148]
[1745650228480,4.794,1806.8,1806.7,6.0448892]
[1745650228684,4.794,1806.8,1806.7,0.50993598]
[1745650229549,4.794,1806.8,1806.7,0.81599317]
[1745650230184,4.794,1806.8,1806.7,6.35094639]
[1745650230404,4.794,1806.8,1806.7,2.004589]
[1745650231465,4.794,1806.8,1806.7,0.81599317]
[1745650231800,5.01278253,1806.8,1806.7,0.81599317]
[1745650231958,11.35232941,1806.8,1806.7,0.81599317]
[1745650232306,11.35232941,1806.8,1806.7,0.30605719]
[1745650232501,5.81768253,1806.8,1806.7,0.30605719]
[1745650232702,5.81768253,1806.8,1806.5,4.90085832]
[1745650233000,11.35235353,1806.8,1806.5,4.90085832]
[1745650233164,11.35235353,1806.8,1806.6,0.51044363]
[1745650233364,11.35235353,1806.8,1806.5,4.90085832]
[1745650233770,3.21878253,1806.8,1806.5,4.90085832]
[1745650234098,0.21878253,1806.8,1806.6,5.53524359]
[1745650234294,0.21878253,1806.8,1806.7,0.51042945]
[1745650236658,0.21878253,1806.8,1806.7,6.54067146]
[1745650236894,0.21878253,1806.8,1806.7,7.31077146]
[1745650237058,0.4049603,1807.1,1806.9,5.53432534]
[1745650238001,1.3055,1807.0,1806.5,4.90085832]
[1745650238198,10.37145155,1806.9,1806.6,0.51027338]
[1745650238706,4.837,1806.9,1806.5,10.43626299]
[1745650238896,4.837,1806.9,1806.6,1.0436263]
[1745650239264,5.93869711,1807.1,1806.9,5.53418346]
[1745650239265,0.4049603,1807.1,1806.9,5.53418346]
[1745650239865,0.4049603,1807.1,1807.0,10.43489263]
[1745650240061,0.4049603,1807.1,1807.0,4.90085832]
[1745650240595,0.4049603,1807.1,1807.0,5.41082002]
[1745650241180,0.59174428,1807.1,1807.0,5.41082002]
[1745650242207,0.59174428,1807.1,1807.0,5.7168812]
[1745650242391,0.59174428,1807.1,1807.0,6.84198203]
[1745650247297,6.12547235,1807.1,1807.0,5.7168812]
[1745650247502,0.59174428,1807.1,1807.0,5.7168812]
[1745650249102,0.59174428,1807.1,1807.0,12.06911551]
[1745650249302,0.59174428,1807.1,1807.0,6.5350812]
[1745650249609,0.59174428,1807.1,1807.0,7.74200595]
[1745650252220,0.59174428,1807.1,1807.0,6.5350812]
[1745650252385,0.59174428,1807.1,1807.0,5.7168812]
[1745650252827,0.59174428,1807.1,1807.0,11.25091551]
[1745650253012,0.59174428,1807.1,1807.0,12.06711551]
[1745650254605,0.59174428,1807.1,1807.0,12.5624043]
[1745650254800,0.59174428,1807.1,1807.0,14.37207378]
[1745650255433,0.4049603,1807.1,1807.0,14.37207378]
[1745650256304,0.59422844,1807.1,1807.0,14.37207378]
[1745650260738,0.4049603,1807.1,1807.0,14.37207378]
[1745650261410,0.59427301,1807.1,1807.0,14.37207378]
[1745650263138,0.4049603,1807.1,1807.0,14.37207378]
[1745650263445,0.59427301,1807.1,1807.0,14.37207378]
[1745650264698,0.4049603,1807.1,1807.0,14.37207378]
[1745650265032,0.59623391,1807.1,1807.0,14.37207378]
[1745650266539,0.4049603,1807.1,1807.0,14.37207378]
[1745650267635,0.59623391,1807.1,1807.0,14.37207378]
[1745650269837,0.4049603,1807.1,1807.0,14.37207378]
[1745650270206,0.59188705,1807.1,1807.0,14.37207378]
[1745650272722,0.4049603,1807.1,1807.0,14.37207378]
[1745650273040,0.59190614,1807.1,1807.0,14.37207378]
[1745650273406,0.4049603,1807.1,1807.0,14.37207378]
[1745650276711,0.59483813,1807.1,1807.0,14.37207378]
[1745650276910,0.4049603,1807.1,1807.0,14.37207378]
[1745650283438,0.4049603,1807.1,1807.0,14.77684555]
[1745650283641,0.4049603,1807.1,1807.0,13.96064555]
[1745650284673,0.4049603,1807.1,1807.0,13.55587378]
[1745650285031,0.59393494,1807.1,1807.0,13.55587378]
[1745650285866,0.1,1807.9,1807.1,4.90085832]
[1745650286071,0.764,1807.8,1807.7,5.53189135]
[1745650286253,0.92126935,1807.8,1807.7,10.43274967]
[1745650286663,0.92126935,1807.8,1807.7,10.94271137]
[1745650286835,0.92126935,1807.8,1807.7,5.7168812]
[1745650287234,0.92126935,1807.8,1807.7,11.24877255]
[1745650287962,0.92126935,1807.8,1807.7,5.7168812]
[1745650288161,0.92126935,1807.8,1807.7,11.24877255]
[1745650290252,0.92126935,1807.8,1807.7,5.7168812]
[1745650290764,7.10811658,1807.8,1807.7,5.7168812]
[1745650290946,7.12431658,1807.8,1807.7,5.7168812]
[1745650291355,7.12431658,1807.8,1807.7,5.41082002]
[1745650292093,1.59273123,1807.8,1807.7,5.41082002]
[1745650293939,7.12431658,1807.8,1807.7,5.41082002]
[1745650294173,10.12431658,1807.8,1807.7,5.41082002]
[1745650296477,14.93631658,1807.8,1807.7,5.41082002]
[1745650297179,14.93631658,1807.8,1807.4,4.90085832]
[1745650297180,6.36360345,1807.5,1807.4,4.90085832]
[1745650297484,3.0,1807.4,1807.0,5.53390915]
[1745650297647,4.778,1807.3,1807.0,10.43476747]
[1745650297853,4.93721659,1807.3,1807.0,10.43476747]
[1745650298059,0.15921659,1807.3,1807.2,5.53342186]
[1745650298260,1.49363166,1807.7,1807.4,5.53267293]
[1745650298261,4.778,1807.6,1807.4,5.53267293]
[1745650298461,0.8311,1807.7,1807.5,5.53250345]
[1745650298689,5.6091,1807.7,1807.5,5.53250345]
[1745650299001,0.8311,1807.7,1807.6,0.30647302]
[1745650299164,5.6091,1807.7,1807.6,0.30647302]
[1745650300385,4.778,1807.8,1807.6,5.83846875]
[1745650300570,4.778,1807.8,1807.7,0.30647302]
[1745650301288,4.91243954,1807.8,1807.7,0.30647302]
[1745650306393,4.91243954,1807.8,1807.7,5.83836437]
[1745650307866,4.91243954,1807.8,1807.7,0.30647302]
[1745650308390,4.91243954,1807.8,1807.7,5.20733134]
[1745650310203,4.91243954,1807.8,1807.7,10.73922269]
[1745650310371,4.91243954,1807.8,1807.7,5.20733134]
[1745650310909,4.91243954,1807.8,1807.7,10.73922269]
[1745650316371,4.91243954,1807.8,1807.7,5.20733134]
[1745650316665,4.91243954,1807.8,1807.7,10.73922269]
[1745650320602,0.13443954,1807.8,1807.7,10.73922269]
[1745650320904,4.878,1807.9,1807.7,10.73922269]
[1745650321108,0.12465436,1807.8,1807.7,10.73922269]
[1745650321403,4.878,1807.9,1807.7,10.73922269]
[1745650321611,0.12465436,1807.8,1807.7,10.73922269]
[1745650322204,4.878,1807.9,1807.7,10.73922269]
[1745650322407,0.12465436,1807.8,1807.7,10.73922269]
[1745650322621,0.12465436,1807.8,1807.7,5.20733134]
[1745650323114,4.878,1807.9,1807.7,5.20733134]
[1745650323411,0.12465436,1807.8,1807.7,5.20733134]
[1745650323715,4.878,1807.9,1807.7,5.20733134]
[1745650323913,0.12465436,1807.8,1807.7,10.73922269]
[1745650324145,0.7671,1807.8,1807.7,5.20733134]
[1745650324422,0.89150618,1807.8,1807.7,4.90085832]
[1745650324587,6.42309153,1807.8,1807.7,4.90085832]
[1745650324773,10.46838032,1807.8,1807.7,4.90085832]
[1745650325114,12.70493749,1807.8,1807.7,4.90085832]
[1745650325408,0.7671,1807.4,1807.2,4.90085832]
[1745650325582,4.778,1807.3,1807.2,4.90085832]
[1745650325777,4.90140326,1807.3,1807.2,4.90085832]
[1745650326210,4.90140326,1807.3,1807.2,5.20728477]
[1745650326593,6.02154283,1807.3,1807.2,5.20728477]
[1745650327212,6.02154283,1807.3,1807.2,4.90085832]
[1745650327920,11.55465852,1807.3,1807.2,4.90085832]
[1745650328226,6.02154283,1807.3,1807.2,4.90085832]
[1745650328528,4.90140326,1807.3,1807.2,4.90085832]
[1745650328694,0.12340326,1807.3,1807.2,4.90085832]
[1745650328894,4.743,1807.4,1807.2,4.90085832]
[1745650329097,0.12340963,1807.3,1807.2,4.90085832]
[1745650329295,4.743,1807.4,1807.2,10.43428018]
[1745650329496,0.12340963,1807.3,1807.2,10.43406251]
[1745650329721,4.743,1807.4,1807.2,10.43406251]
[1745650329919,0.12340963,1807.3,1807.2,10.43406251]
[1745650330127,4.743,1807.4,1807.2,10.43406251]
[1745650330308,0.12340963,1807.3,1807.2,10.43406251]
[1745650330517,4.743,1807.5,1807.4,5.53280956]
[1745650330716,0.12168195,1807.5,1807.4,5.53280956]
[1745650330899,4.743,1807.7,1807.4,5.53280956]
[1745650331106,0.12171533,1807.6,1807.4,5.53280956]
[1745650331301,4.743,1807.7,1807.4,5.53280956]
[1745650331669,0.12171533,1807.6,1807.4,5.53280956]
[1745650331922,4.743,1807.7,1807.4,5.53280956]
[1745650332129,0.12171533,1807.6,1807.4,5.53280956]
[1745650332330,4.743,1807.7,1807.4,5.53280956]
[1745650332507,0.12171533,1807.6,1807.4,5.53280956]
[1745650332712,0.12171533,1807.6,1807.5,5.53250345]
[1745650333009,4.743,1807.7,1807.5,5.83860808]
[1745650333330,0.12171533,1807.6,1807.5,5.83860808]
[1745650333517,4.743,1807.7,1807.5,5.83860808]
[1745650333838,0.12171533,1807.6,1807.5,7.22786889]
[1745650334038,0.12171533,1807.6,1807.5,7.72315768]
[1745650334244,0.1,1807.9,1807.5,7.72315768]
[1745650334245,4.743,1807.8,1807.7,5.53189135]
[1745650334793,4.743,1807.8,1807.7,5.83799598]
[1745650334997,4.843,1807.9,1807.7,5.83799598]
[1745650335312,4.843,1807.9,1807.7,0.30610463]
[1745650335553,4.843,1807.9,1807.7,5.83798048]
[1745650335731,4.843,1807.9,1807.7,5.53187585]
[1745650336461,4.843,1807.9,1807.6,5.5319198]
[1745650336644,4.843,1807.9,1807.7,5.53185736]
[1745650337751,4.843,1807.9,1807.7,10.43271568]
[1745650338371,0.8047,1807.8,1807.7,4.90085832]
[1745650339266,4.66477,1807.9,1807.7,4.90085832]
[1745650339455,4.743,1807.8,1807.7,4.90085832]
[1745650340173,4.66477,1807.9,1807.7,4.90085832]
[1745650340542,4.743,1807.8,1807.7,4.90085832]
[1745650341466,4.743,1807.8,1807.7,5.20686795]
[1745650342368,4.743,1807.8,1807.7,4.90085832]
[1745650343345,5.683777,1807.8,1807.7,4.90085832]
[1745650346266,5.80624547,1807.8,1807.7,4.90085832]
[1745650348734,4.86546847,1807.8,1807.7,4.90085832]
[1745650349130,4.86546847,1807.8,1807.7,5.20688499]
[1745650351481,4.86546847,1807.8,1807.7,4.90085832]
[1745650353182,14.21525382,1807.8,1807.7,4.90085832]
[1745650355241,3.12246847,1807.8,1807.5,5.53237886]
[1745650355444,4.743,1807.7,1807.6,6.08525352]
[1745650355875,0.12246847,1807.8,1807.6,6.08525352]
[1745650356077,0.12275171,1807.7,1807.6,5.53201563]
[1745650356251,5.68395171,1807.7,1807.3,5.53302572]
[1745650356583,4.86575171,1807.7,1807.3,5.53286869]
[1745650356780,4.86575171,1807.7,1807.4,5.53261589]
[1745650357472,4.86575171,1807.7,1807.5,0.30648627]
[1745650357975,4.86575171,1807.7,1807.5,1.10148627]
[1745650358341,4.86575171,1807.7,1807.6,0.30648627]
[1745650358990,0.12275171,1807.7,1807.6,0.30648627]
[1745650359139,15.13118014,1807.7,1807.6,0.30648627]
[1745650359344,5.53289031,1807.4,1807.2,4.90085832]
[1745650359681,4.84677113,1807.3,1807.2,4.90085832]
[1745650360045,4.84677113,1807.3,1807.2,5.20748582]
[1745650361882,4.84677113,1807.3,1807.2,11.53590768]
[1745650363179,0.12077113,1807.3,1807.2,13.24286871]
[1745650363381,4.727,1807.6,1807.3,5.53283835]
[1745650363547,0.12018995,1807.5,1807.3,5.53283835]
[1745650363748,0.12018995,1807.5,1807.4,5.53280956]
[1745650364050,0.12018995,1807.5,1807.2,13.24265865]
[1745650364387,0.12018995,1807.5,1807.3,0.3066275]
[1745650365087,0.12018995,1807.5,1807.4,0.3066275]
[1745650366287,0.12018995,1807.5,1807.4,5.83943706]
[1745650369994,0.12018995,1807.5,1807.4,0.3066275]
[1745650378623,0.12018995,1807.5,1807.4,5.83943706]
[1745650381126,0.12018995,1807.5,1807.4,0.3066275]
[1745650381923,0.12018995,1807.5,1807.4,5.83943706]
[1745650383033,0.12018995,1807.5,1807.4,0.3066275]
[1745650384114,0.12018995,1807.5,1807.4,5.83943706]
[1745650385216,0.12018995,1807.5,1807.4,0.3066275]
[1745650392316,6.1374124,1807.5,1807.4,0.3066275]
[1745650392548,6.9559124,1807.5,1807.4,0.3066275]
[1745650393534,9.9559124,1807.5,1807.4,0.3066275]
[1745650393897,11.06604976,1807.4,1807.2,4.90085832]
[1745650394099,0.7886,1807.1,1806.9,4.90085832]
[1745650394300,4.706,1807.0,1806.9,4.90085832]
[1745650394504,4.82549514,1807.0,1806.9,4.90085832]
[1745650394725,4.82549514,1807.0,1806.9,5.2079814]
[1745650395010,15.09093433,1807.0,1806.9,5.2079814]
[1745650395336,16.21061481,1807.0,1806.9,5.2079814]
[1745650395543,16.21061481,1807.0,1806.9,4.90085832]
[1745650397752,5.53448556,1806.9,1806.5,5.53554796]
[1745650398127,0.11816474,1806.8,1806.4,6.29780434]
[1745650398357,0.11816474,1806.8,1806.5,0.3063698]
[1745650398518,0.11816474,1806.8,1806.5,5.84167596]
[1745650398718,14.0286992,1807.0,1806.5,5.84180045]
[1745650399118,5.6526474,1806.9,1806.5,0.3063698]
[1745650399446,5.6526474,1806.9,1806.4,7.53072506]
[1745650400558,0.11819176,1806.9,1806.5,5.53543553]
[1745650400758,0.11819176,1806.9,1806.5,7.33738395]
[1745650400915,4.707,1806.8,1806.7,6.36101184]
[1745650401120,0.11819176,1806.9,1806.7,6.36101184]
[1745650401357,0.11819176,1806.9,1806.2,4.90085832]
[1745650401358,3.94725837,1806.8,1806.0,0.59523536]
[1745650401654,11.07116696,1806.7,1806.1,6.858192]
[1745650401851,11.07116696,1806.7,1806.2,5.53630637]
[1745650402051,3.11592621,1806.6,1806.3,0.30603917]
[1745650402252,0.11592621,1806.6,1806.3,0.30603917]
[1745650402420,4.707,1806.5,1806.3,0.30603917]
[1745650402756,0.11580658,1806.4,1806.3,5.8422065]
[1745650402963,0.11580658,1806.4,1806.3,8.27896124]
[1745650403362,4.707,1806.6,1806.4,5.53560814]
[1745650403519,4.707,1806.6,1806.5,5.53556601]
[1745650403719,4.707,1806.6,1806.4,5.53570304]
[1745650404231,4.707,1806.6,1806.4,11.07134869]
[1745650404431,4.707,1806.6,1806.4,5.53584807]
[1745650404640,4.707,1806.6,1806.3,0.8035]
[1745650404964,5.53577647,1806.5,1806.1,0.8035]
[1745650405147,0.7842,1806.4,1806.0,0.59523536]
[1745650405463,6.32267238,1805.6,1805.1,5.63970786]
[1745650405642,4.708,1805.5,1805.1,1.72981522]
[1745650405852,4.708,1805.7,1805.6,5.53807362]
[1745650406064,4.708,1805.8,1805.5,5.53852306]
[1745650406356,0.11556947,1805.7,1805.5,5.53841619]
[1745650406653,0.11556947,1805.7,1805.5,5.53837817]
[1745650407050,0.11556947,1805.7,1805.5,5.53863195]
[1745650407221,4.709,1805.8,1805.5,5.53863195]
[1745650407422,0.10802159,1805.7,1805.5,5.53863195]
[1745650407623,0.10802159,1805.7,1805.5,6.72646264]
[1745650407844,4.709,1805.8,1805.7,5.53801849]
[1745650408219,4.81705502,1805.8,1805.5,1.68350492]
[1745650408434,1.2796086,1805.7,1805.1,0.1]
[1745650408634,0.7842,1805.4,1805.1,0.1]
[1745650408957,4.81683368,1805.3,1805.1,0.1]
[1745650410057,4.81683368,1805.3,1805.1,5.63977726]
[1745650413249,4.81683368,1805.3,1805.1,0.1]
[1745650413750,4.81683368,1805.3,1805.1,5.63981371]
[1745650415333,4.81683368,1805.3,1805.1,0.1]
[1745650415663,4.81683368,1805.3,1805.1,5.63972557]
[1745650416568,9.9071524,1805.2,1805.1,0.1]
[1745650416730,9.46506733,1805.2,1805.1,0.1]
[1745650416935,3.92551493,1805.2,1805.1,0.1]
[1745650417261,9.46506733,1805.2,1805.1,0.1]
[1745650417568,11.49242306,1805.2,1805.1,0.1]
[1745650420168,5.95287066,1805.2,1805.1,0.1]
[1745650420368,8.82051493,1805.2,1805.1,0.1]
[1745650421137,14.36006733,1805.2,1805.1,0.1]
[1745650421340,5.82051493,1805.2,1805.1,0.1]
[1745650421674,5.00291493,1805.2,1805.1,0.1]
[1745650422565,0.10791493,1805.2,1805.1,0.1]
[1745650422865,5.00291493,1805.2,1805.1,0.1]
[1745650423567,4.895,1805.2,1805.1,5.63985928]
[1745650424763,4.895,1805.2,1805.1,0.1]
[1745650426874,4.895,1805.2,1805.1,5.63985928]
[1745650427553,4.895,1805.2,1805.1,0.1]
[1745650431384,5.93842456,1805.2,1805.1,0.1]
[1745650431877,4.895,1805.2,1805.1,0.1]
[1745650436494,4.895,1805.2,1805.1,0.40750513]
[1745650441903,13.4345524,1805.2,1805.1,0.40750513]
[1745650442193,14.2544524,1805.2,1805.1,0.1]
[1745650446383,14.8044524,1805.2,1805.1,0.1]
[1745650446580,16.8883734,1805.2,1805.1,0.1]
[1745650446783,16.8893734,1805.2,1805.1,0.1]
[1745650455816,11.4433734,1805.2,1805.1,0.1]
[1745650456007,15.4514734,1805.2,1805.1,0.1]
[1745650460719,10.6234734,1805.2,1805.1,0.1]
[1745650461021,15.4514734,1805.2,1805.1,0.1]
[1745650465314,16.2748734,1805.2,1805.1,0.1]
[1745650468731,16.0014734,1805.2,1805.1,0.1]
[1745650468935,11.9762734,1805.2,1805.1,0.1]
[1745650469101,16.8042734,1805.2,1805.1,0.1]
[1745650469433,16.0014734,1805.2,1805.1,0.1]
[1745650472120,16.8042734,1805.2,1805.1,0.1]
[1745650474612,33.4282734,1805.2,1805.1,0.1]
[1745650479943,33.4282734,1805.2,1805.1,1e-08]
[1745650488362,32.0334734,1805.2,1805.1,1e-08]
[1745650488537,32.5834734,1805.2,1805.1,1e-08]
[1745650494177,27.7974734,1805.2,1805.1,1e-08]
[1745650494378,32.5834734,1805.2,1805.1,1e-08]
[1745650499678,27.7974734,1805.2,1805.1,1e-08]
[1745650499883,24.96,1805.2,1805.1,1e-08]
[1745650500172,24.96,1805.2,1805.1,0.76690001]